fUSD/lending_fUSD_20240422
["ID","MTS","AMOUNT","RATE_DAILY","PERIOD"]
[323163268,1713761445134,-522.24,0.00016438,2]
[323163269,1713761445143,-500.0,0.00016438,2]
[323163270,1713761445152,-546.22,0.00016438,2]
[323163271,1713761445162,-836.99,0.00016438,2]
[323163272,1713761445171,-500.0,0.00016438,2]
[323163273,1713761445180,-500.0,0.00016438,2]
[323163274,1713761445191,-511.7,0.00016438,2]
[323163275,1713761445200,-500.0,0.00016438,2]
[323163276,1713761445209,-500.0,0.00016438,2]
[323163277,1713761445219,-500.0,0.00016438,2]
[323163278,1713761445228,-500.0,0.00016438,2]
[323163279,1713761445238,-500.0,0.00016438,2]
[323163280,1713761445247,-500.0,0.00016438,2]
[323163281,1713761445257,-500.0,0.00016438,2]
[323163282,1713761445266,-500.0,0.00016438,2]
[323163283,1713761445275,-500.0,0.00016438,2]
[323163284,1713761445284,-500.0,0.00016438,2]
[323163285,1713761445294,-500.0,0.00016438,2]
[323163286,1713761445302,-651.34,0.00016438,2]
[323163287,1713761445312,-500.0,0.00016438,2]
[323163288,1713761445321,-1198.49,0.00016438,2]
[323163289,1713761445331,-641.63,0.00016438,2]
[323163290,1713761445341,-500.0,0.00016438,2]
[323163291,1713761445352,-318.93248158,0.00016438,2]
[323163292,1713761445362,-500.0,0.00016438,2]
[323163293,1713761445371,-500.0,0.00016438,2]
[323163294,1713761445381,-500.0,0.00016438,2]
[323163295,1713761445390,-500.0,0.00016438,2]
[323163296,1713761445399,-598.15,0.00016438,2]
[323163297,1713761445408,-500.0,0.00016438,2]
[323163298,1713761445418,-845.51,0.00016438,2]
[323163299,1713761445427,-500.0,0.00016438,2]
[323163300,1713761445438,-760.45,0.00016438,2]
[323163301,1713761445447,-500.0,0.00016438,2]
[323163302,1713761445456,-500.0,0.00016438,2]
[323163303,1713761445465,-500.0,0.00016438,2]
[323163304,1713761445474,-500.0,0.00016438,2]
[323163305,1713761445483,-509.27,0.00016438,2]
[323163306,1713761445492,-500.0,0.00016438,2]
[323163307,1713761445501,-500.0,0.00016438,2]
[323163308,1713761445510,-803.58,0.00016438,2]
[323163309,1713761445519,-500.0,0.00016438,2]
[323163310,1713761445528,-500.0,0.00016438,2]
[323163311,1713761445538,-500.0,0.00016438,2]
[323163312,1713761445547,-500.0,0.00016438,2]
[323163313,1713761445556,-500.0,0.00016438,2]
[323163314,1713761445565,-500.0,0.00016438,2]
[323163315,1713761445574,-501.77958588,0.00016438,2]
[323163316,1713761445583,-616.08,0.00016438,2]
[323163317,1713761445592,-500.0,0.00016438,2]
[323163318,1713761445601,-500.0,0.00016438,2]
[323163319,1713761445610,-500.0,0.00016438,2]
[323163320,1713761445619,-500.0,0.00016438,2]
[323163321,1713761445628,-500.0,0.00016438,2]
[323163322,1713761445638,-500.0,0.00016438,2]
[323163323,1713761445647,-500.0,0.00016438,2]
[323163324,1713761445655,-500.0,0.00016438,2]
[323163325,1713761445665,-500.0,0.00016438,2]
[323163326,1713761445674,-500.0,0.00016438,2]
[323163327,1713761445685,-500.0,0.00016438,2]
[323163328,1713761445694,-500.0,0.00016438,2]
[323163329,1713761445703,-500.0,0.00016438,2]
[323163330,1713761445712,-500.0,0.00016438,2]
[323163331,1713761445721,-500.0,0.00016438,2]
[323163332,1713761445730,-500.0,0.00016438,2]
[323163333,1713761445739,-500.0,0.00016438,2]
[323163334,1713761445748,-500.0,0.00016438,2]
[323163335,1713761445757,-500.0,0.00016438,2]
[323163336,1713761445766,-500.0,0.00016438,2]
[323163337,1713761445776,-500.0,0.00016438,2]
[323163338,1713761445786,-500.0,0.00016438,2]
[323163339,1713761445795,-500.0,0.00016438,2]
[323163340,1713761445804,-500.0,0.00016438,2]
[323163341,1713761445814,-595.94323317,0.00016438,2]
[323163342,1713761445827,-500.0,0.00016438,2]
[323163343,1713761445837,-595.14,0.00016438,2]
[323163344,1713761445846,-500.0,0.00016438,2]
[323163345,1713761445855,-500.0,0.00016438,2]
[323163346,1713761445865,-500.0,0.00016438,2]
[323163347,1713761445874,-500.0,0.00016438,2]
[323163348,1713761445884,-983.64,0.00016438,2]
[323163349,1713761445894,-500.0,0.00016438,2]
[323163350,1713761445904,-500.0,0.00016438,2]
[323163351,1713761445913,-500.0,0.00016438,2]
[323163352,1713761445922,-500.0,0.00016438,2]
[323163353,1713761445933,-500.0,0.00016438,2]
[323163354,1713761445943,-349.71546554,0.00016438,2]
[323163355,1713761445952,-500.0,0.00016438,2]
[323163356,1713761445961,-501.21165916,0.00016438,2]
[323163357,1713761445970,-500.0,0.00016438,2]
[323163358,1713761445980,-500.0,0.00016438,2]
[323163359,1713761445989,-500.0,0.00016438,2]
[323163360,1713761445999,-970.25,0.00016438,2]
[323163361,1713761446008,-500.0,0.00016438,2]
[323163362,1713761446017,-500.0,0.00016438,2]
[323163363,1713761446027,-500.0,0.00016438,2]
[323163364,1713761446036,-500.0,0.00016438,2]
[323163365,1713761446045,-151.0,0.00016438,2]
[323163366,1713761446055,-500.0,0.00016438,2]
[323163367,1713761446064,-585.77,0.00016438,2]
[323163368,1713761446073,-151.0,0.00016438,2]
[323163369,1713761446083,-151.0,0.00016438,2]
[323163370,1713761446092,-500.0,0.00016438,2]
[323163371,1713761446102,-500.0,0.00016438,2]
[323163372,1713761446111,-501.93477848,0.00016438,2]
[323163373,1713761446120,-665.44,0.00016438,2]
[323163374,1713761446130,-500.0,0.00016438,2]
[323163375,1713761446139,-151.0,0.00016438,2]
[323163376,1713761446149,-151.0,0.00016438,2]
[323163377,1713761446168,-151.0,0.00016438,2]
[323163378,1713761446177,-650.65,0.00016438,2]
[323163379,1713761446188,-500.0,0.00016438,2]
[323163380,1713761446198,-500.0,0.00016438,2]
[323163381,1713761446207,-501.13556191,0.00016438,2]
[323163382,1713761446217,-500.0,0.00016438,2]
[323163383,1713761446228,-501.55630375,0.00016438,2]
[323163384,1713761446237,-500.0,0.00016438,2]
[323163385,1713761446247,-802.45,0.00016438,2]
[323163386,1713761446257,-500.0,0.00016438,2]
[323163387,1713761446266,-500.0,0.00016438,2]
[323163388,1713761446275,-500.0,0.00016438,2]
[323163389,1713761446284,-500.0,0.00016438,2]
[323163390,1713761446294,-500.0,0.00016438,2]
[323163391,1713761446482,-500.0,0.00016438,2]
[323163392,1713761446492,-526.63151225,0.00016438,2]
[323163393,1713761446501,-553.24,0.00016438,2]
[323163394,1713761446511,-500.0,0.00016438,2]
[323163395,1713761446519,-500.94306394,0.00016438,2]
[323163396,1713761446529,-500.0,0.00016438,2]
[323163397,1713761446538,-500.0,0.00016438,2]
[323163398,1713761446547,-500.0,0.00016438,2]
[323163399,1713761446556,-500.0,0.00016438,2]
[323163400,1713761446565,-617.55,0.00016438,2]
[323163401,1713761446574,-500.0,0.00016438,2]
[323163402,1713761446583,-534.06538562,0.00016438,2]
[323163403,1713761446592,-500.0,0.00016438,2]
[323163404,1713761446601,-500.0,0.00016438,2]
[323163405,1713761446610,-500.0,0.00016438,2]
[323163406,1713761446619,-1121.92,0.00016438,2]
[323163407,1713761446629,-500.0,0.00016438,2]
[323163408,1713761446637,-500.0,0.00016438,2]
[323163409,1713761446646,-500.0,0.00016438,2]
[323163410,1713761446655,-500.0,0.00016438,2]
[323163411,1713761446664,-500.0,0.00016438,2]
[323163412,1713761446674,-1052.04,0.00016438,2]
[323163413,1713761446685,-546.75472505,0.00016438,2]
[323163414,1713761446694,-500.0,0.00016438,2]
[323163415,1713761446703,-500.0,0.00016438,2]
[323163416,1713761446712,-500.0,0.00016438,2]
[323163417,1713761446721,-599.76,0.00016438,2]
[323163418,1713761446730,-500.0,0.00016438,2]
[323163419,1713761446739,-607.98,0.00016438,2]
[323163420,1713761446748,-500.0,0.00016438,2]
[323163421,1713761446757,-500.0,0.00016438,2]
[323163422,1713761446766,-500.0,0.00016438,2]
[323163423,1713761446775,-501.43984201,0.00016438,2]
[323163424,1713761446784,-923.48,0.00016438,2]
[323163425,1713761446793,-500.0,0.00016438,2]
[323163426,1713761446802,-500.0,0.00016438,2]
[323163427,1713761446811,-1053.87,0.00016438,2]
[323163428,1713761446820,-506.99157974,0.00016438,2]
[323163429,1713761446829,-500.0,0.00016438,2]
[323163430,1713761446838,-500.0,0.00016438,2]
[323163431,1713761446847,-500.8019874,0.00016438,2]
[323163432,1713761446856,-500.0,0.00016438,2]
[323163433,1713761446865,-595.47,0.00016438,2]
[323163434,1713761446874,-500.0,0.00016438,2]
[323163435,1713761446883,-503.38029419,0.00016438,2]
[323163436,1713761446892,-500.0,0.00016438,2]
[323163437,1713761446901,-500.0,0.00016438,2]
[323163438,1713761446910,-502.11526002,0.00016438,2]
[323163439,1713761446919,-500.0,0.00016438,2]
[323163440,1713761446929,-500.0,0.00016438,2]
[323163441,1713761446940,-1399.3,0.00016438,2]
[323163442,1713761446949,-547.55,0.00016438,2]
[323163443,1713761446958,-500.0,0.00016438,2]
[323163444,1713761446967,-500.0,0.00016438,2]
[323163445,1713761446976,-640.89,0.00016438,2]
[323163446,1713761446986,-672.42,0.00016438,2]
[323163447,1713761446995,-936.62,0.00016438,2]
[323163448,1713761447004,-500.0,0.00016438,2]
[323163449,1713761447013,-500.0,0.00016438,2]
[323163450,1713761447022,-376.29448505,0.00016438,2]
[323163451,1713761447032,-500.0,0.00016438,2]
[323163452,1713761447041,-500.0,0.00016438,2]
[323163453,1713761447050,-500.0,0.00016438,2]
[323163454,1713761447059,-500.0,0.00016438,2]
[323163455,1713761447068,-500.0,0.00016438,2]
[323163456,1713761447077,-679.19,0.00016438,2]
[323163457,1713761447086,-500.69343899,0.00016438,2]
[323163458,1713761447095,-500.0,0.00016438,2]
[323163459,1713761447104,-590.52677687,0.00016438,2]
[323163460,1713761447114,-512.30919651,0.00016438,2]
[323163461,1713761447123,-646.5,0.00016438,2]
[323163462,1713761447133,-500.0,0.00016438,2]
[323163463,1713761447142,-500.0,0.00016438,2]
[323163464,1713761447151,-500.0,0.00016438,2]
[323163465,1713761447161,-500.28,0.00016438,2]
[323163466,1713761447171,-500.0,0.00016438,2]
[323163467,1713761447180,-517.27318952,0.00016438,2]
[323163468,1713761447191,-500.0,0.00016438,2]
[323163469,1713761447201,-500.0,0.00016438,2]
[323163470,1713761447210,-509.67599997,0.00016438,2]
[323163471,1713761447219,-500.0,0.00016438,2]
[323163472,1713761447229,-702.63,0.00016438,2]
[323163473,1713761447238,-500.0,0.00016438,2]
[323163474,1713761447247,-500.0,0.00016438,2]
[323163475,1713761447257,-500.0,0.00016438,2]
[323163476,1713761447266,-500.0,0.00016438,2]
[323163477,1713761447275,-500.0,0.00016438,2]
[323163478,1713761447285,-532.65,0.00016438,2]
[323163479,1713761447294,-500.0,0.00016438,2]
[323163480,1713761447303,-500.0,0.00016438,2]
[323163481,1713761447312,-500.0,0.00016438,2]
[323163482,1713761447322,-500.0,0.00016438,2]
[323163483,1713761447330,-500.0,0.00016438,2]
[323163484,1713761447340,-540.08,0.00016438,2]
[323163485,1713761447352,-500.0,0.00016438,2]
[323163486,1713761447361,-1298.14,0.00016438,2]
[323163487,1713761447370,-833.71,0.00016438,2]
[323163488,1713761447380,-500.0,0.00016438,2]
[323163489,1713761447390,-501.29320669,0.00016438,2]
[323163490,1713761447399,-500.0,0.00016438,2]
[323163491,1713761447408,-500.0,0.00016438,2]
[323163492,1713761447418,-500.0,0.00016438,2]
[323163493,1713761447428,-500.0,0.00016438,2]
[323163494,1713761447438,-500.0,0.00016438,2]
[323163495,1713761447447,-574.35,0.00016438,2]
[323163496,1713761447457,-501.62594394,0.00016438,2]
[323163497,1713761447467,-523.11,0.00016438,2]
[323163498,1713761447477,-500.0,0.00016438,2]
[323163499,1713761447486,-719.67,0.00016438,2]
[323163500,1713761447496,-500.0,0.00016438,2]
[323163501,1713761447505,-653.76,0.00016438,2]
[323163502,1713761447515,-500.0,0.00016438,2]
[323163503,1713761447524,-296.9492609,0.00016438,2]
[323163504,1713761447533,-500.0,0.00016438,2]
[323163505,1713761447542,-500.0,0.00016438,2]
[323163506,1713761447552,-515.47,0.00016438,2]
[323163507,1713761447560,-500.0,0.00016438,2]
[323163508,1713761447570,-500.0,0.00016438,2]
[323163509,1713761447579,-240.12091773,0.00016438,2]
[323163510,1713761447588,-501.69200295,0.00016438,2]
[323163511,1713761447597,-624.68,0.00016438,2]
[323163512,1713761447606,-500.0,0.00016438,2]
[323163513,1713761447615,-500.52,0.00016438,2]
[323163514,1713761447624,-500.0,0.00016438,2]
[323163515,1713761447633,-500.0,0.00016438,2]
[323163516,1713761447642,-500.0,0.00016438,2]
[323163517,1713761447650,-500.0,0.00016438,2]
[323163518,1713761447660,-500.0,0.00016438,2]
[323163519,1713761447669,-500.0,0.00016438,2]
[323163520,1713761447677,-500.0,0.00016438,2]
[323163521,1713761447687,-519.61,0.00016438,2]
[323163522,1713761447696,-500.0,0.00016438,2]
[323163523,1713761447706,-500.0,0.00016438,2]
[323163524,1713761447714,-500.0,0.00016438,2]
[323163525,1713761447723,-500.0,0.00016438,2]
[323163526,1713761447732,-500.0,0.00016438,2]
[323163527,1713761447741,-500.0,0.00016438,2]
[323163528,1713761447750,-500.0,0.00016438,2]
[323163529,1713761447759,-743.58,0.00016438,2]
[323163530,1713761447768,-500.0,0.00016438,2]
[323163531,1713761447777,-500.0,0.00016438,2]
[323163532,1713761447786,-500.0,0.00016438,2]
[323163533,1713761447795,-500.42746259,0.00016438,2]
[323163534,1713761447804,-501.44263646,0.00016438,2]
[323163535,1713761447813,-1185.59,0.00016438,2]
[323163536,1713761447823,-678.58,0.00016438,2]
[323163537,1713761447832,-1197.36,0.00016438,2]
[323163538,1713761447841,-500.0,0.00016438,2]
[323163539,1713761447851,-500.0,0.00016438,2]
[323163540,1713761447863,-500.0,0.00016438,2]
[323163541,1713761447872,-2287.14,0.00016438,2]
[323163542,1713761447883,-377.02864673,0.00016438,2]
[323163543,1713761447893,-702.32,0.00016438,2]
[323163544,1713761447903,-500.74213501,0.00016438,2]
[323163545,1713761447912,-500.0,0.00016438,2]
[323163546,1713761447922,-500.0,0.00016438,2]
[323163547,1713761447931,-500.0,0.00016438,2]
[323163548,1713761447941,-530.74,0.00016438,2]
[323163549,1713761447951,-500.0,0.00016438,2]
[323163550,1713761447960,-517.12809526,0.00016438,2]
[323163551,1713761447970,-659.76,0.00016438,2]
[323163552,1713761447980,-771.0,0.00016438,2]
[323163553,1713761447990,-501.1744449,0.00016438,2]
[323163554,1713761448000,-1128.54,0.00016438,2]
[323163555,1713761448009,-500.68294749,0.00016438,2]
[323163556,1713761448020,-500.0,0.00016438,2]
[323163557,1713761448030,-500.0,0.00016438,2]
[323163558,1713761448039,-936.62,0.00016438,2]
[323163559,1713761448050,-500.0,0.00016438,2]
[323163560,1713761448059,-404.981479,0.00016438,2]
[323163561,1713761448069,-824.61,0.00016438,2]
[323163562,1713761448078,-500.0,0.00016438,2]
[323163563,1713761448088,-500.0,0.00016438,2]
[323163564,1713761448097,-914.72,0.00016438,2]
[323163565,1713761448107,-500.0,0.00016438,2]
[323163566,1713761448116,-500.0,0.00016438,2]
[323163567,1713761448126,-559.69,0.00016438,2]
[323163568,1713761448135,-1247.7,0.00016438,2]
[323163569,1713761448145,-500.0,0.00016438,2]
[323163570,1713761448155,-907.63,0.00016438,2]
[323163571,1713761448164,-501.29592209,0.00016438,2]
[323163572,1713761448174,-1291.28,0.00016438,2]
[323163573,1713761448183,-500.0,0.00016438,2]
[323163574,1713761448192,-500.0,0.00016438,2]
[323163575,1713761448201,-500.0,0.00016438,2]
[323163576,1713761448211,-500.0,0.00016438,2]
[323163577,1713761448220,-640.66,0.00016438,2]
[323163578,1713761448229,-553.26,0.00016438,2]
[323163579,1713761448238,-500.0,0.00016438,2]
[323163580,1713761448248,-858.97,0.00016438,2]
[323163581,1713761448257,-501.21211464,0.00016438,2]
[323163582,1713761448265,-500.0,0.00016438,2]
[323163583,1713761448274,-500.0,0.00016438,2]
[323163584,1713761448283,-500.0,0.00016438,2]
[323163585,1713761448293,-500.0,0.00016438,2]
[323163586,1713761448301,-500.0,0.00016438,2]
[323163587,1713761448310,-500.0,0.00016438,2]
[323163588,1713761448319,-500.0,0.00016438,2]
[323163589,1713761448328,-500.0,0.00016438,2]
[323163590,1713761448339,-574.87,0.00016438,2]
[323163591,1713761448349,-500.0,0.00016438,2]
[323163592,1713761448358,-501.6915641,0.00016438,2]
[323163593,1713761448367,-630.7,0.00016438,2]
[323163594,1713761448376,-500.0,0.00016438,2]
[323163595,1713761448386,-500.0,0.00016438,2]
[323163596,1713761448395,-500.60421453,0.00016438,2]
[323163597,1713761448404,-577.4,0.00016438,2]
[323163598,1713761448414,-502.13941503,0.00016438,2]
[323163599,1713761448423,-980.33,0.00016438,2]
[323163600,1713761448433,-525.80316972,0.00016438,2]
[323163601,1713761448444,-500.0,0.00016438,2]
[323163602,1713761448452,-500.75152652,0.00016438,2]
[323163603,1713761448461,-500.0,0.00016438,2]
[323163604,1713761448470,-500.0,0.00016438,2]
[323163605,1713761448479,-501.4015739,0.00016438,2]
[323163606,1713761448489,-500.0,0.00016438,2]
[323163607,1713761448498,-552.08,0.00016438,2]
[323163608,1713761448508,-705.65,0.00016438,2]
[323163609,1713761448517,-501.38337881,0.00016438,2]
[323163610,1713761448526,-501.31252851,0.00016438,2]
[323163611,1713761448535,-500.0,0.00016438,2]
[323163612,1713761448544,-500.0,0.00016438,2]
[323163613,1713761448553,-500.0,0.00016438,2]
[323163614,1713761448562,-1248.63,0.00016438,2]
[323163615,1713761448571,-500.0,0.00016438,2]
[323163616,1713761448580,-500.0,0.00016438,2]
[323163617,1713761448589,-500.0,0.00016438,2]
[323163618,1713761448598,-500.0,0.00016438,2]
[323163619,1713761448607,-1000.48314435,0.00016438,2]
[323163620,1713761448616,-500.0,0.00016438,2]
[323163621,1713761448626,-500.0,0.00016438,2]
[323163622,1713761448635,-500.0,0.00016438,2]
[323163623,1713761448644,-3016.96,0.00016438,2]
[323163624,1713761448653,-702.15,0.00016438,2]
[323163625,1713761448662,-669.18,0.00016438,2]
[323163626,1713761448673,-515.67,0.00016438,2]
[323163627,1713761448685,-519.4,0.00016438,2]
[323163628,1713761448695,-500.0,0.00016438,2]
[323163629,1713761448706,-500.0,0.00016438,2]
[323163630,1713761448715,-159.84980291,0.00016438,2]
[323163631,1713761448725,-706.01,0.00016438,2]
[323163632,1713761448737,-1668.34,0.00016438,2]
[323163633,1713761448747,-1528.57,0.00016438,2]
[323163634,1713761448757,-500.0,0.00016438,2]
[323163635,1713761448768,-500.0,0.00016438,2]
[323163636,1713761448777,-1380.81,0.00016438,2]
[323163637,1713761448787,-500.0,0.00016438,2]
[323163638,1713761448796,-1530.51,0.00016438,2]
[323163639,1713761448808,-500.0,0.00016438,2]
[323163640,1713761448817,-512.14,0.00016438,2]
[323163641,1713761448826,-541.4776284,0.00016438,2]
[323163642,1713761448836,-500.0,0.00016438,2]
[323163643,1713761448847,-501.0323613,0.00016438,2]
[323163644,1713761448858,-500.0,0.00016438,2]
[323163645,1713761448867,-1726.8,0.00016438,2]
[323163646,1713761449048,-1962.55,0.00016438,2]
[323163647,1713761449058,-596.76157753,0.00016438,2]
[323163648,1713761449067,-500.0,0.00016438,2]
[323163649,1713761449076,-2216.35,0.00016438,2]
[323163650,1713761449086,-500.0,0.00016438,2]
[323163651,1713761449095,-583.0,0.00016438,2]
[323163652,1713761449104,-978.99,0.00016438,2]
[323163653,1713761449114,-171.61302864,0.00016438,2]
[323163654,1713761449123,-695.88,0.00016438,2]
[323163655,1713761449132,-500.0,0.00016438,2]
[323163656,1713761449141,-500.0,0.00016438,2]
[323163657,1713761449151,-500.0,0.00016438,2]
[323163658,1713761449161,-706.99,0.00016438,2]
[323163659,1713761449170,-500.0,0.00016438,2]
[323163660,1713761449180,-500.0,0.00016438,2]
[323163661,1713761449189,-560.58,0.00016438,2]
[323163662,1713761449198,-500.0,0.00016438,2]
[323163663,1713761449207,-500.0,0.00016438,2]
[323163664,1713761449216,-500.0,0.00016438,2]
[323163665,1713761449225,-1146.62,0.00016438,2]
[323163666,1713761449234,-1360.83,0.00016438,2]
[323163667,1713761449243,-500.0,0.00016438,2]
[323163668,1713761449252,-655.67,0.00016438,2]
[323163669,1713761449262,-1399.81,0.00016438,2]
[323163670,1713761449270,-1527.83,0.00016438,2]
[323163671,1713761449280,-500.0,0.00016438,2]
[323163672,1713761449288,-500.0,0.00016438,2]
[323163673,1713761449298,-500.0,0.00016438,2]
[323163674,1713761449307,-500.0,0.00016438,2]
[323163675,1713761449316,-500.0,0.00016438,2]
[323163676,1713761449325,-752.15,0.00016438,2]
[323163677,1713761449334,-500.0,0.00016438,2]
[323163678,1713761449344,-500.0,0.00016438,2]
[323163679,1713761449356,-500.0,0.00016438,2]
[323163680,1713761449365,-500.0,0.00016438,2]
[323163681,1713761449374,-500.0,0.00016438,2]
[323163682,1713761449383,-2330.56,0.00016438,2]
[323163683,1713761449394,-500.0,0.00016438,2]
[323163684,1713761449403,-500.0,0.00016438,2]
[323163685,1713761449412,-850.27,0.00016438,2]
[323163686,1713761449422,-227.46758139,0.00016438,2]
[323163687,1713761449432,-500.0,0.00016438,2]
[323163688,1713761449442,-640.71,0.00016438,2]
[323163689,1713761449451,-500.0,0.00016438,2]
[323163690,1713761449460,-500.0,0.00016438,2]
[323163691,1713761449469,-500.0,0.00016438,2]
[323163692,1713761449478,-500.0,0.00016438,2]
[323163693,1713761449488,-500.0,0.00016438,2]
[323163694,1713761449496,-500.0,0.00016438,2]
[323163695,1713761449506,-500.0,0.00016438,2]
[323163696,1713761449515,-500.0,0.00016438,2]
[323163697,1713761449524,-500.0,0.00016438,2]
[323163698,1713761449533,-1117.63,0.00016438,2]
[323163699,1713761449543,-3322.73,0.00016438,2]
[323163700,1713761449552,-500.0,0.00016438,2]
[323163701,1713761449561,-500.0,0.00016438,2]
[323163702,1713761449570,-500.0,0.00016438,2]
[323163703,1713761449579,-500.0,0.00016438,2]
[323163704,1713761449588,-500.0,0.00016438,2]
[323163705,1713761449597,-500.11401226,0.00016438,2]
[323163706,1713761449606,-500.25508894,0.00016438,2]
[323163707,1713761449616,-500.0,0.00016438,2]
[323163708,1713761449625,-500.0,0.00016438,2]
[323163709,1713761449634,-501.31668637,0.00016438,2]
[323163710,1713761449643,-500.0,0.00016438,2]
[323163711,1713761449652,-517.1,0.00016438,2]
[323163712,1713761449661,-623.36,0.00016438,2]
[323163713,1713761449670,-500.0,0.00016438,2]
[323163714,1713761449678,-1549.9,0.00016438,2]
[323163715,1713761449688,-500.0,0.00016438,2]
[323163716,1713761449697,-507.08,0.00016438,2]
[323163717,1713761449706,-500.0,0.00016438,2]
[323163718,1713761449715,-500.0,0.00016438,2]
[323163719,1713761449725,-500.0,0.00016438,2]
[323163720,1713761449734,-565.07,0.00016438,2]
[323163721,1713761449743,-500.0,0.00016438,2]
[323163722,1713761449752,-500.0,0.00016438,2]
[323163723,1713761449761,-500.0,0.00016438,2]
[323163724,1713761449770,-500.0,0.00016438,2]
[323163725,1713761449779,-500.0,0.00016438,2]
[323163726,1713761449789,-500.0,0.00016438,2]
[323163727,1713761449798,-500.0,0.00016438,2]
[323163728,1713761449808,-500.0,0.00016438,2]
[323163729,1713761449817,-682.95,0.00016438,2]
[323163730,1713761449827,-500.0,0.00016438,2]
[323163731,1713761449836,-501.59701569,0.00016438,2]
[323163732,1713761449847,-500.0,0.00016438,2]
[323163733,1713761449857,-500.0,0.00016438,2]
[323163734,1713761449866,-500.0,0.00016438,2]
[323163735,1713761449875,-500.0,0.00016438,2]
[323163736,1713761449884,-500.0,0.00016438,2]
[323163737,1713761449894,-500.0,0.00016438,2]
[323163738,1713761449903,-502.31587357,0.00016438,2]
[323163739,1713761449913,-501.52,0.00016438,2]
[323163740,1713761449923,-500.0,0.00016438,2]
[323163741,1713761449932,-2006.54,0.00016438,2]
[323163742,1713761449942,-1497.75,0.00016438,2]
[323163743,1713761449952,-500.0,0.00016438,2]
[323163744,1713761449961,-500.38987552,0.00016438,2]
[323163745,1713761449971,-500.0,0.00016438,2]
[323163746,1713761449981,-500.0,0.00016438,2]
[323163747,1713761449991,-922.65,0.00016438,2]
[323163748,1713761450000,-500.0,0.00016438,2]
[323163749,1713761450010,-500.0,0.00016438,2]
[323163750,1713761450019,-500.0,0.00016438,2]
[323163751,1713761450029,-500.0,0.00016438,2]
[323163752,1713761450038,-2460.42,0.00016438,2]
[323163753,1713761450047,-500.0,0.00016438,2]
[323163754,1713761450056,-500.0,0.00016438,2]
[323163755,1713761450065,-500.0,0.00016438,2]
[323163756,1713761450075,-500.0,0.00016438,2]
[323163757,1713761450084,-500.74526019,0.00016438,2]
[323163758,1713761450093,-438.50866455,0.00016438,2]
[323163759,1713761450103,-500.0,0.00016438,2]
[323163760,1713761450112,-500.82834798,0.00016438,2]
[323163761,1713761450122,-500.0,0.00016438,2]
[323163762,1713761450131,-1709.74,0.00016438,2]
[323163763,1713761450141,-500.0,0.00016438,2]
[323163764,1713761450162,-500.0,0.00016438,2]
[323163765,1713761450178,-500.0,0.00016438,2]
[323163766,1713761450198,-580.41,0.00016438,2]
[323163767,1713761450216,-3224.69,0.00016438,2]